bitfinex-derivatives/quotes_SOLF0:USTF0_20260222
["timestamp","ask_amount","ask_price","bid_price","bid_amount"]
[1771738036593,10.5938,84.989,84.941,6.19063245]
[1771738036792,8.74556468,84.988,84.941,6.19063245]
[1771738036992,8.74556468,84.987,84.941,6.19063245]
[1771738037198,8.74556468,84.986,84.941,6.19063245]
[1771738037394,8.74556468,84.985,84.941,6.19063245]
[1771738037595,8.74556468,84.984,84.941,6.19063245]
[1771738037797,8.74556468,84.983,84.941,6.19063245]
[1771738037999,10.5938,84.989,84.941,6.19063245]
[1771738038294,8.74572193,84.988,84.941,6.19063245]
[1771738038498,8.74572193,84.987,84.941,6.19063245]
[1771738038698,8.74572193,84.986,84.941,6.19063245]
[1771738038897,8.74572193,84.985,84.941,6.19063245]
[1771738039100,8.74572193,84.984,84.941,6.19063245]
[1771738039298,8.74572193,84.983,84.941,6.19063245]
[1771738039501,10.5938,84.989,84.941,6.19063245]
[1771738039701,8.74636485,84.988,84.941,6.19063245]
[1771738039903,8.74636485,84.987,84.941,6.19063245]
[1771738040104,8.74636485,84.986,84.941,6.19063245]
[1771738040302,8.74636485,84.985,84.941,6.19063245]
[1771738040503,8.74636485,84.984,84.941,6.19063245]
[1771738040702,8.74636485,84.983,84.941,6.19063245]
[1771738040904,10.5938,84.989,84.941,6.19063245]
[1771738041105,8.74639658,84.988,84.941,6.19063245]
[1771738041307,8.74639658,84.987,84.941,6.19063245]
[1771738041606,8.74639658,84.986,84.941,6.19063245]
[1771738041906,8.74639658,84.985,84.941,6.19063245]
[1771738042207,8.74639658,84.984,84.941,6.19063245]
[1771738042403,8.74639658,84.983,84.941,6.19063245]
[1771738042705,8.74639658,84.982,84.941,6.19063245]
[1771738042906,10.5938,84.989,84.941,6.19063245]
[1771738043097,8.7464694,84.988,84.941,6.19063245]
[1771738043299,8.7464694,84.987,84.941,6.19063245]
[1771738043497,8.7464694,84.986,84.941,6.19063245]
[1771738043708,8.7464694,84.985,84.941,6.19063245]
[1771738043902,8.7464694,84.984,84.941,6.19063245]
[1771738044110,8.7464694,84.983,84.941,6.19063245]
[1771738044407,8.7464694,84.982,84.941,6.19063245]
[1771738044608,10.5938,84.989,84.941,6.19063245]
[1771738044808,8.739666,84.988,84.941,6.19063245]
[1771738045009,8.739666,84.987,84.941,6.19063245]
[1771738045206,8.739666,84.986,84.941,6.19063245]
[1771738045406,8.739666,84.985,84.941,6.19063245]
[1771738045607,8.739666,84.984,84.941,6.19063245]
[1771738045808,8.739666,84.983,84.941,6.19063245]
[1771738046008,8.739666,84.982,84.941,6.19063245]
[1771738046208,10.5938,84.989,84.941,6.19063245]
[1771738046409,8.73981506,84.988,84.941,6.19063245]
[1771738046606,8.73981506,84.987,84.941,6.19063245]
[1771738046806,8.73981506,84.986,84.941,6.19063245]
[1771738047107,8.73981506,84.985,84.941,6.19063245]
[1771738047410,8.73981506,84.984,84.941,6.19063245]
[1771738047611,8.73981506,84.983,84.941,6.19063245]
[1771738047910,8.73981506,84.982,84.941,6.19063245]
[1771738048110,10.5938,84.989,84.941,6.19063245]
[1771738048311,8.74002277,84.988,84.941,6.19063245]
[1771738048512,8.74002277,84.987,84.941,6.19063245]
[1771738048711,8.74002277,84.986,84.941,6.19063245]
[1771738048911,8.74002277,84.985,84.941,6.19063245]
[1771738049114,8.74002277,84.984,84.941,6.19063245]
[1771738049314,8.74002277,84.983,84.941,6.19063245]
[1771738049518,8.74002277,84.982,84.941,6.19063245]
[1771738049707,10.5938,84.989,84.941,6.19063245]
[1771738049911,8.74016772,84.988,84.941,6.19063245]
[1771738050213,8.74016772,84.987,84.941,6.19063245]
[1771738050510,8.74016772,84.986,84.941,6.19063245]
[1771738050714,8.74016772,84.985,84.941,6.19063245]
[1771738050914,8.74016772,84.984,84.941,6.19063245]
[1771738051109,8.74016772,84.983,84.941,6.19063245]
[1771738051312,8.74016772,84.982,84.941,6.19063245]
[1771738051512,10.5938,84.989,84.941,6.19063245]
[1771738051707,8.74046726,84.988,84.941,6.19063245]
[1771738051907,8.74046726,84.987,84.941,6.19063245]
[1771738052109,8.74046726,84.986,84.941,6.19063245]
[1771738052317,8.74046726,84.985,84.941,6.19063245]
[1771738052618,8.74046726,84.984,84.941,6.19063245]
[1771738052818,8.74046726,84.983,84.941,6.19063245]
[1771738053020,10.5938,84.989,84.941,6.19063245]
[1771738053320,8.74069674,84.988,84.941,6.19063245]
[1771738053619,8.74069674,84.987,84.941,6.19063245]
[1771738053816,8.74069674,84.986,84.941,6.19063245]
[1771738054023,8.74069674,84.985,84.941,6.19063245]
[1771738054322,8.74069674,84.984,84.941,6.19063245]
[1771738054624,8.74069674,84.983,84.941,6.19063245]
[1771738054924,10.5938,84.989,84.941,6.19063245]
[1771738055122,8.74104455,84.988,84.941,6.19063245]
[1771738055323,8.74104455,84.987,84.941,6.19063245]
[1771738055624,8.74104455,84.986,84.941,6.19063245]
[1771738055926,8.74104455,84.985,84.941,6.19063245]
[1771738056222,8.74104455,84.984,84.941,6.19063245]
[1771738056424,8.74104455,84.983,84.941,6.19063245]
[1771738056616,10.5938,84.989,84.941,6.19063245]
[1771738056818,8.74159857,84.988,84.941,6.19063245]
[1771738057016,8.74159857,84.987,84.941,6.19063245]
[1771738057214,8.74159857,84.986,84.941,6.19063245]
[1771738057415,8.74159857,84.985,84.941,6.19063245]
[1771738057728,10.5938,84.989,84.941,6.19063245]
[1771738057729,8.74159857,84.984,84.941,6.19063245]
[1771738058024,8.74159857,84.983,84.941,6.19063245]
[1771738058224,8.74159857,84.982,84.941,6.19063245]
[1771738058527,10.5938,84.989,84.941,6.19063245]
[1771738058725,8.74160726,84.988,84.941,6.19063245]
[1771738058926,8.74160726,84.987,84.941,6.19063245]
[1771738059125,8.74160726,84.986,84.941,6.19063245]
[1771738059328,8.74160726,84.985,84.941,6.19063245]
[1771738059624,8.74160726,84.984,84.941,6.19063245]
[1771738059824,8.74160726,84.983,84.941,6.19063245]
[1771738060021,8.74160726,84.982,84.941,6.19063245]
[1771738060226,10.5938,84.989,84.941,6.19063245]
[1771738060426,8.7419105,84.988,84.941,6.19063245]
[1771738060624,8.7419105,84.987,84.941,6.19063245]
[1771738060820,8.7419105,84.986,84.941,6.19063245]
[1771738061028,8.7419105,84.985,84.941,6.19063245]
[1771738061226,8.7419105,84.984,84.941,6.19063245]
[1771738061426,8.7419105,84.983,84.941,6.19063245]
[1771738061626,8.7419105,84.982,84.941,6.19063245]
[1771738061827,10.5938,84.989,84.941,6.19063245]
[1771738062029,8.74200063,84.988,84.941,6.19063245]
[1771738062326,8.74200063,84.987,84.941,6.19063245]
[1771738062629,8.74200063,84.986,84.941,6.19063245]
[1771738062823,8.74200063,84.985,84.941,6.19063245]
[1771738063024,8.74200063,84.984,84.941,6.19063245]
[1771738063222,8.74200063,84.983,84.941,6.19063245]
[1771738063423,8.74200063,84.982,84.941,6.19063245]
[1771738063718,10.5938,84.989,84.941,6.19063245]
[1771738063922,8.74222163,84.988,84.941,6.19063245]
[1771738064122,8.74222163,84.987,84.941,6.19063245]
[1771738064425,8.74222163,84.986,84.941,6.19063245]
[1771738064625,8.74222163,84.985,84.941,6.19063245]
[1771738064826,8.74222163,84.984,84.941,6.19063245]
[1771738065126,8.74222163,84.983,84.941,6.19063245]
[1771738065328,8.74222163,84.982,84.941,6.19063245]
[1771738065528,8.74222163,84.981,84.941,6.19063245]
[1771738065821,10.5938,84.989,84.941,6.19063245]
[1771738066030,10.5942,84.986,84.941,6.19063245]
[1771738066222,8.74233041,84.985,84.941,6.19063245]
[1771738066428,2.48221159,84.99,84.941,6.19063245]
[1771738066429,8.74233041,84.984,84.941,6.19063245]
[1771738066727,8.74233041,84.983,84.941,6.19063245]
[1771738066929,8.74233041,84.982,84.941,6.19063245]
[1771738067235,8.74233041,84.981,84.941,6.19063245]
[1771738067431,2.48221159,84.99,84.941,6.19063245]
[1771738067727,10.5944,84.984,84.941,6.19063245]
[1771738067928,8.74213984,84.983,84.941,6.19063245]
[1771738068128,8.74213984,84.982,84.941,6.19063245]
[1771738068321,8.74213984,84.981,84.941,6.19063245]
[1771738068522,10.5944,84.984,84.941,6.19063245]
[1771738068726,8.7422062,84.983,84.941,6.19063245]
[1771738068926,8.7422062,84.982,84.941,6.19063245]
[1771738069129,8.7422062,84.981,84.941,6.19063245]
[1771738069328,10.5944,84.984,84.941,6.19063245]
[1771738069628,8.7421277,84.983,84.941,6.19063245]
[1771738069829,8.7421277,84.982,84.941,6.19063245]
[1771738070032,8.7421277,84.981,84.941,6.19063245]
[1771738070329,10.5944,84.984,84.941,6.19063245]
[1771738070529,8.7420568,84.983,84.941,6.19063245]
[1771738070828,8.7420568,84.982,84.941,6.19063245]
[1771738071029,8.7420568,84.981,84.941,6.19063245]
[1771738071227,10.5944,84.984,84.941,6.19063245]
[1771738071422,10.5949,84.981,84.941,6.19063245]
[1771738072532,10.596,84.972,84.941,6.19063245]
[1771738077731,2.48221159,84.97,84.941,6.19063245]
[1771738079831,10.596,84.972,84.941,6.19063245]
[1771738083131,10.596,84.972,84.932,6.23221723]
[1771738084732,4.20257942,84.958,84.931,193.11760661]
[1771738084933,4.20257942,84.958,84.902,21.92374411]
[1771738085235,4.20257942,84.958,84.9,2.48221159]
[1771738085827,4.19448759,84.952,84.9,2.48221159]
[1771738086730,2.48221159,84.96,84.908,5.31162953]
[1771738086731,14.82276884,84.949,84.908,5.31162953]
[1771738087836,4.21027338,84.948,84.908,5.31162953]
[1771738089041,10.5997,84.942,84.908,5.31162953]
[1771738099340,4.21027338,84.948,84.908,5.31162953]
[1771738099945,4.21027338,84.948,84.91,7.19143802]
[1771738102443,4.21027338,84.948,84.911,4.70922643]
[1771738115353,4.03672798,84.946,84.911,4.70922643]
[1771738115748,4.03672798,84.946,84.878,21.92374411]
[1771738115951,4.03672798,84.946,84.901,122.37428999]
[1771738116357,4.02512649,84.943,84.901,122.37428999]
[1771738117257,4.02512649,84.943,84.907,19.00382474]
[1771738119258,10.6,84.94,84.907,19.00382474]
[1771738119659,10.6,84.94,84.908,4.8674413]
[1771738129562,10.6,84.94,84.911,4.8674413]
[1771738129863,3.83821639,84.954,84.921,4.13e-05]
[1771738130764,10.6,84.94,84.921,4.13e-05]
[1771738131958,3.83821639,84.954,84.921,4.13e-05]
[1771738131959,10.5988,84.949,84.921,4.13e-05]
[1771738136969,3.83821639,84.954,84.921,4.13e-05]
[1771738148273,10.5985,84.952,84.921,4.13e-05]
[1771738149273,3.83821639,84.954,84.921,4.13e-05]
[1771738162981,3.83821639,84.954,84.911,4.82595061]
[1771738190501,14.65781901,84.992,84.91,2.48363345]
[1771738190502,4.40793696,84.969,84.921,4.45815774]
[1771738190802,4.40793696,84.969,84.931,4.45815774]
[1771738203412,4.40793696,84.959,84.921,4.45815774]
[1771738211216,4.40793696,84.959,84.923,10.602]
[1771738218619,4.40793696,84.959,84.921,4.45815774]
[1771738245646,4.40793696,84.959,84.92,2.48363345]
[1771738245647,4.56294418,84.97,84.923,4.54696129]
[1771738258961,4.56294418,84.97,84.925,4.54696129]
[1771738259261,4.56294418,84.969,84.925,4.54696129]
[1771738261166,4.56294418,84.959,84.919,199.86307952]
[1771738266265,4.56294418,84.959,84.919,204.41004081]
[1771738267966,4.56294418,84.959,84.92,4.29132743]
[1771738269766,4.56294418,84.959,84.92,6.77405397]
[1771738271068,4.56294418,84.959,84.921,4.29132743]
[1771738284176,4.44624761,84.949,84.908,4.46770009]
[1771738285774,4.44624761,84.947,84.908,4.46770009]
[1771738290486,4.44624761,84.943,84.908,4.46770009]
[1771738291687,10.5997,84.942,84.908,4.46770009]
[1771738299393,4.44624761,84.943,84.908,4.46770009]
[1771738300886,4.22029234,84.954,84.911,4.32662232]
[1771738305297,4.22029234,84.969,84.921,4.32662232]
[1771738305500,4.22029234,84.969,84.931,4.32662232]
[1771738305701,4.22029234,84.969,84.921,4.32662232]
[1771738305998,4.22029234,84.959,84.914,186.79648646]
[1771738306999,4.22029234,84.959,84.915,4.32662232]
[1771738310401,4.22029234,84.959,84.916,4.32662232]
[1771738335029,4.22029234,84.959,84.92,2.48340045]
[1771738340429,4.22029234,84.959,84.92,6.49773146]
[1771738341127,4.22029234,84.959,84.921,4.01433101]
[1771738362649,4.22029234,84.959,84.914,186.79648646]
[1771738362844,3.91134743,84.957,84.914,186.79648646]
[1771738363744,3.91134743,84.955,84.914,186.79648646]
[1771738366346,3.91134743,84.955,84.914,190.78237921]
[1771738369042,3.91134743,84.955,84.915,3.98589275]
[1771738370535,3.91134743,84.955,84.92,2.48393681]
[1771738370740,3.91134743,84.955,84.921,3.98589275]
[1771738371745,3.91134743,84.965,84.921,3.98589275]
[1771738377851,10.5971,84.963,84.921,3.98589275]
[1771738378349,14.50844743,84.963,84.921,3.98589275]
[1771738381049,3.91134743,84.963,84.921,3.98589275]
[1771738384251,2.48393681,84.96,84.921,3.98589275]
[1771738384553,3.91134743,84.959,84.921,3.98589275]
[1771738397068,4.02720986,84.957,84.908,3.91950275]
[1771738398766,4.02720986,84.955,84.908,3.91950275]
[1771738399773,2.48393681,84.95,84.908,3.91950275]
[1771738400073,4.02720986,84.949,84.908,3.91950275]
[1771738401673,339.4376763,84.975,84.898,3.91950275]
[1771738401674,2.48393681,84.93,84.898,3.91950275]
[1771738401971,4.02720986,84.929,84.898,3.91950275]
[1771738402575,4.02720986,84.929,84.893,10.6057]
[1771738403874,4.02720986,84.929,84.893,14.52520275]
[1771738404774,4.02720986,84.929,84.894,3.91950275]
[1771738439199,3.97631086,84.939,84.894,3.91950275]
[1771738439399,3.97631086,84.939,84.901,4.00988219]
[1771738444796,10.5983,84.954,84.901,4.00988219]
[1771738445004,3.97631086,84.952,84.901,4.00988219]
[1771738445402,3.97631086,84.949,84.901,4.00988219]
[1771738447501,10.5991,84.947,84.901,4.00988219]
[1771738448700,14.43943506,84.947,84.901,4.00988219]
[1771738448898,14.43943506,84.947,84.91,2.48497299]
[1771738449202,14.43943506,84.947,84.911,3.98648799]
[1771738451005,3.84033506,84.946,84.911,3.98648799]
[1771738455010,3.82944308,84.958,84.911,3.98648799]
[1771738457215,10.5972,84.962,84.921,4.03909723]
[1771738457809,14.42664308,84.962,84.921,4.03909723]
[1771738462311,3.82944308,84.962,84.921,4.03909723]
[1771738467117,3.82944308,84.945,84.899,4.03909723]
[1771738468920,3.82944308,84.945,84.902,4.03909723]
[1771738526776,3.82944308,84.945,84.904,3.73318252]
[1771738528076,3.83794683,84.961,84.911,3.73318252]
[1771738528376,3.83794683,84.961,84.914,3.73318252]
[1771738529068,3.83794683,84.961,84.915,3.73318252]
[1771738529978,3.83794683,84.961,84.92,2.48440221]
[1771738530175,3.83794683,84.961,84.921,3.73318252]
[1771738539288,3.81694404,84.972,84.941,3.85323549]
[1771738539476,3.81694404,84.983,84.941,3.85323549]
[1771738546185,3.81694404,84.959,84.931,249.62588334]
[1771738550201,3.81694404,84.959,84.92,16.68368369]
[1771738550400,3.81694404,84.959,84.92,14.19928148]
[1771738551996,3.81694404,84.959,84.92,16.68368369]
[1771738552695,3.81694404,84.959,84.921,3.85323549]
[1771738554501,3.81694404,84.989,84.941,3.85323549]
[1771738555699,3.81694404,84.985,84.941,3.85323549]
[1771738576413,2.48281293,84.98,84.941,3.85323549]
[1771738577019,4.01574853,84.979,84.941,3.85323549]
[1771738588129,4.01574853,84.979,84.942,3.67078366]
[1771738601036,4.01574853,84.979,84.944,3.96077565]
[1771738621048,4.01574853,84.979,84.934,250.52149026]
[1771738621049,4.01574853,84.979,84.946,10.5991]
[1771738621251,3.77192479,84.994,84.951,3.80078093]
[1771738621551,3.77192479,84.994,84.961,3.80078093]
[1771738622449,2.48185697,84.99,84.944,3.80078093]
[1771738622653,3.77192479,84.989,84.944,3.80078093]
[1771738630357,3.6795378,84.984,84.934,261.12209026]
[1771738630562,10.5943,84.985,84.935,3.94267279]
[1771738630563,3.6795378,84.979,84.935,3.94267279]
[1771738634062,3.75405409,84.969,84.926,3.60798894]
[1771738650892,3.75405409,84.967,84.926,3.60798894]
[1771738655288,3.75405409,84.957,84.926,3.60798894]
[1771738656692,3.75405409,84.955,84.926,3.60798894]
[1771738660295,10.5983,84.953,84.926,3.60798894]
[1771738662399,10.5987,84.95,84.926,8.894e-05]
[1771738665100,10.5987,84.95,84.91,2.48185697]
[1771738665299,10.5987,84.95,84.911,3.61944709]
[1771738667893,10.5997,84.942,84.911,3.61944709]
[1771738668394,3.66148926,84.952,84.911,3.61944709]
[1771738669395,3.66148926,84.941,84.911,3.61944709]
[1771738669795,3.66148926,84.941,84.905,224.29256905]
[1771738672212,3.66148926,84.941,84.905,227.91201614]
[1771738675612,14.26138926,84.94,84.905,227.91201614]
[1771738675807,3.66148926,84.939,84.905,227.91201614]
[1771738676310,3.66148926,84.931,84.905,201.73386905]
[1771738676514,3.66148926,84.931,84.896,3.61944709]
[1771738676714,3.66148926,84.929,84.896,3.61944709]
[1771738677710,10.602,84.924,84.896,3.61944709]
[1771738679411,10.603,84.916,84.896,4.709e-05]
[1771738684123,10.6018,84.925,84.901,1.68021782]
[1771738699327,10.601,84.931,84.901,1.68021782]
[1771738707935,14.27838421,84.931,84.901,1.68021782]
[1771738708135,3.67738421,84.93,84.901,1.68021782]
[1771738711841,3.67738421,84.923,84.894,14.47434512]
[1771738714438,10.6028,84.917,84.894,14.47434512]
[1771738714639,3.67738421,84.923,84.894,14.47434512]
[1771738721255,3.67738421,84.923,84.894,16.11856887]
[1771738726061,3.67738421,84.923,84.895,1.63865336]
[1771738732769,3.67738421,84.923,84.894,14.47434512]
[1771738732971,3.96340646,84.917,84.894,14.47434512]
[1771738735964,10.6029,84.916,84.894,14.47434512]
[1771738754493,10.6029,84.916,84.894,4.512e-05]
[1771738759696,10.6029,84.916,84.89,117.14036417]
[1771738785914,10.6029,84.916,84.89,118.74929127]
[1771738786616,10.6029,84.916,84.891,1.60889323]
[1771738786913,3.8864686,84.917,84.89,98.13608276]
[1771738787113,3.8864686,84.917,84.875,120.39611611]
[1771738787318,3.8864686,84.917,84.82,36.64231898]
[1771738787319,2.48497464,84.91,84.853,21.92374411]
[1771738787518,2.48497464,84.91,84.85,2.48497464]
[1771738787519,8.73734238,84.909,84.85,2.48497464]
[1771738787717,8.73734238,84.908,84.85,2.48497464]
[1771738788018,8.73664056,84.907,84.85,2.48497464]
[1771738788218,2.48497464,84.91,84.85,2.48497464]
[1771738788419,8.72914841,84.909,84.85,2.48497464]
[1771738788619,8.72914841,84.908,84.85,2.48497464]
[1771738788819,2.48497464,84.91,84.85,2.48497464]
[1771738789020,8.72914239,84.909,84.851,30.03193634]
[1771738789323,10.6059,84.893,84.851,30.03193634]
[1771738790419,10.6068,84.885,84.851,30.03193634]
[1771738794528,2.48497464,84.91,84.851,30.03193634]
[1771738795124,2.48497464,84.91,84.861,30.0331456]
[1771738796218,10.6055,84.896,84.861,30.0331456]
[1771738799134,10.6065,84.888,84.861,30.0331456]
[1771738799336,2.48670934,84.91,84.861,30.0331456]
[1771738800737,10.6054,84.897,84.861,30.0331456]
[1771738800939,269.80193671,84.916,84.871,30.09335376]
[1771738801736,10.603,84.915,84.871,30.09335376]
[1771738803440,10.604,84.907,84.871,30.09335376]
[1771738811346,269.80193671,84.916,84.871,30.09335376]
[1771738819450,269.80193671,84.916,84.872,30.12587467]
[1771738820251,269.80193671,84.916,84.873,10.6082]
[1771738820451,269.80193671,84.916,84.874,30.12555501]
[1771738821242,269.80193671,84.916,84.875,10.6079]
[1771738821452,269.80193671,84.916,84.876,30.12385005]
[1771738822349,269.80193671,84.916,84.879,10.6074]
[1771738822551,269.80193671,84.916,84.88,30.12353794]
[1771738841568,269.80193671,84.916,84.881,10.6073]
[1771738862291,2.48627938,84.9,84.862,30.08162111]
[1771738862490,2.48627938,84.9,84.846,30.08162111]
[1771738863791,2.48627938,84.9,84.861,10.6097]
[1771738864287,2.48627938,84.89,84.861,10.6097]
[1771738864690,2.48627938,84.88,84.837,30.0811124]
[1771738864889,2.48627938,84.87,84.837,30.0811124]
[1771738865892,2.48627938,84.87,84.84,10.6124]
[1771738867292,2.48627938,84.87,84.847,0.07428762]
[1771738869290,10.6064,84.889,84.847,0.07428762]
[1771738869291,2.48627938,84.88,84.847,0.07428762]
[1771738873297,13.09377938,84.88,84.847,0.07428762]
[1771738874397,2.48627938,84.88,84.848,30.02624152]
[1771738874897,13.09247938,84.89,84.848,30.02624152]
[1771738875096,2.48627938,84.88,84.848,30.02624152]
[1771738878301,13.09367938,84.88,84.848,30.02624152]
[1771738890105,10.6074,84.88,84.848,30.02624152]
[1771738897612,10.6084,84.873,84.848,30.02624152]
[1771738900412,10.6084,84.873,84.848,11.53204152]
[1771738900616,10.6084,84.873,84.847,2.914e-05]
[1771738916523,10.6099,84.861,84.847,2.914e-05]
[1771738916723,2.48627938,84.86,84.847,2.914e-05]
[1771738917023,2.48627938,84.86,84.817,15.00760104]
[1771738917431,2.48627938,84.84,84.802,15.00760104]
[1771738917927,2.49048807,84.84,84.802,15.00760104]
[1771738918719,10.6131,84.835,84.802,15.00760104]
[1771738922927,10.6143,84.826,84.802,1.04e-06]
[1771738934923,10.6143,84.826,84.762,22.40279406]
[1771738934924,10.612,84.844,84.811,7.55150102]
[1771738938736,10.6109,84.853,84.811,7.55150102]
[1771738939237,2.49048807,84.87,84.811,7.55150102]
[1771738939238,10.6093,84.865,84.811,7.55150102]
[1771738941139,2.49048807,84.86,84.811,7.55150102]
[1771738944238,10.6102,84.858,84.811,7.55150102]
[1771738951840,10.6089,84.868,84.82,2.49048807]
[1771738952037,10.6089,84.868,84.821,7.53806009]
[1771738957058,10.61,84.86,84.831,7.5854074]
[1771738957257,2.49048807,84.88,84.831,7.5854074]
[1771738962465,8.80167909,84.879,84.831,7.5854074]
[1771738962663,2.49048807,84.88,84.831,7.5854074]
[1771738962864,8.80167909,84.879,84.831,7.5854074]
[1771738963064,2.49048807,84.88,84.831,7.5854074]
[1771738969177,8.80270996,84.879,84.831,7.5854074]
[1771738969474,2.49048807,84.88,84.831,7.5854074]
[1771738969675,8.80279127,84.879,84.831,7.5854074]
[1771738969974,2.49048807,84.88,84.831,7.5854074]
[1771738970176,8.80278473,84.879,84.831,7.5854074]
[1771738970374,2.49048807,84.88,84.831,7.5854074]
[1771738970574,8.8033345,84.879,84.831,7.5854074]
[1771738970769,2.49048807,84.88,84.831,7.5854074]
[1771738970969,8.8033345,84.879,84.831,7.5854074]
[1771738971170,2.49048807,84.88,84.831,7.5854074]
[1771738971372,8.80399151,84.879,84.831,7.5854074]
[1771738971576,2.49048807,84.88,84.831,7.5854074]
[1771738971777,8.80399151,84.879,84.831,7.5854074]
[1771738972079,2.49048807,84.88,84.831,7.5854074]
[1771738972372,8.80475447,84.879,84.831,7.5854074]
[1771738972576,2.49048807,84.88,84.831,7.5854074]
[1771738972776,8.80475447,84.879,84.831,7.5854074]
[1771738973077,2.49048807,84.88,84.831,7.5854074]
[1771738973278,8.80551365,84.879,84.831,7.5854074]
[1771738973477,2.49048807,84.88,84.831,7.5854074]
[1771738974373,8.76526572,84.879,84.831,7.5854074]
[1771738974574,2.49048807,84.88,84.831,7.5854074]
[1771738974772,8.76526572,84.879,84.831,7.5854074]
[1771738974972,2.49048807,84.88,84.831,7.5854074]
[1771738975174,8.76526572,84.879,84.831,7.5854074]
[1771738975379,2.49048807,84.88,84.831,7.5854074]
[1771738975579,8.7664113,84.879,84.831,7.5854074]
[1771738975780,2.49048807,84.87,84.831,7.5854074]
[1771738978882,2.49048807,84.88,84.831,7.5854074]
[1771738979082,8.77128447,84.879,84.831,7.5854074]
[1771738979385,8.77128447,84.878,84.831,7.5854074]
[1771738979577,8.77128447,84.877,84.831,7.5854074]
[1771738979884,8.77128447,84.876,84.831,7.5854074]
[1771738980181,8.77485604,84.875,84.831,7.5854074]
[1771738980381,2.48855212,84.88,84.831,7.5854074]
[1771738980583,8.77485301,84.879,84.831,7.5854074]
[1771738980779,8.77485301,84.878,84.831,7.5854074]
[1771738981079,8.77485301,84.877,84.831,7.5854074]
[1771738981276,8.77485301,84.876,84.831,7.5854074]
[1771738981477,8.77485301,84.875,84.831,7.5854074]
[1771738981678,2.48855212,84.88,84.831,7.5854074]
[1771738981880,8.77512364,84.879,84.831,7.5854074]
[1771738982081,8.77512364,84.878,84.831,7.5854074]
[1771738982280,8.77512364,84.877,84.831,7.5854074]
[1771738982582,8.77512364,84.876,84.831,7.5854074]
[1771738982782,0.07433758,84.863,84.831,7.5854074]
[1771739091159,2.48870892,84.86,84.831,7.5854074]
[1771739091857,0.07433758,84.863,84.831,7.5854074]
[1771739098264,2.48870892,84.85,84.821,7.48224269]
[1771739098457,2.48870892,84.84,84.821,7.48224269]
[1771739099963,2.48870892,84.84,84.794,10.6181]
[1771739100360,8.78439537,84.839,84.794,10.6181]
[1771739100561,2.48870892,84.84,84.794,10.6181]
[1771739100860,8.78439537,84.839,84.794,10.6181]
[1771739101061,2.48870892,84.84,84.794,10.6181]
[1771739101264,2.48870892,84.84,84.785,187.16348234]
[1771739101265,2.48870892,84.83,84.785,187.16348234]
[1771739101860,2.49096055,84.83,84.785,187.16348234]
[1771739102056,2.49096055,84.83,84.786,5.237988]
[1771739103962,10.6126,84.839,84.791,5.237988]
[1771739105162,13.81888448,84.839,84.791,5.237988]
[1771739106462,10.6137,84.83,84.791,5.237988]
[1771739108763,10.6125,84.839,84.801,5.20187928]
[1771739111765,10.6125,84.839,84.811,5.09473803]
[1771739118877,10.6135,84.831,84.811,5.09473803]
[1771739155022,10.615,84.82,84.801,4.8321176]
[1771739156421,10.6132,84.834,84.801,4.8321176]
[1771739156617,10.6132,84.834,84.811,4.8321176]
[1771739159027,2.49096055,84.87,84.785,209.21706758]
[1771739159028,8.76777849,84.865,84.821,4.8321176]
[1771739159319,8.76777849,84.865,84.789,22.05358524]
[1771739159320,3.37027364,84.869,84.831,4.8321176]
[1771739160724,3.36699898,84.868,84.831,4.8321176]
[1771739160923,3.34938964,84.877,84.831,4.8321176]
[1771739161227,3.34938964,84.875,84.831,4.8321176]
[1771739161522,3.34938964,84.873,84.831,4.8321176]
[1771739162425,3.34625678,84.869,84.811,4.8321176]
[1771739162724,3.34625678,84.859,84.811,4.8321176]
[1771739176044,3.34625678,84.859,84.814,5.13568334]
[1771739177942,3.34625678,84.859,84.817,10.6153]
[1771739179240,3.34625678,84.859,84.818,5.13568334]
[1771739180345,3.34625678,84.859,84.819,10.615]
[1771739180744,3.34625678,84.859,84.819,15.75068334]
[1771739182544,3.34625678,84.859,84.819,10.615]
[1771739183045,3.28178032,84.849,84.809,5.13568334]
[1771739194953,10.6114,84.848,84.809,5.13568334]
[1771739195257,3.32054205,84.847,84.809,5.13568334]
[1771739196254,10.6118,84.845,84.809,5.13568334]
[1771739197456,13.94330087,84.845,84.809,5.13568334]
[1771739200255,10.613,84.836,84.809,5.13568334]
[1771739208265,3.33150087,84.845,84.809,5.13568334]
[1771739216272,3.33150087,84.845,84.811,5.04495392]
[1771739216975,3.24342981,84.868,84.821,5.04495392]
[1771739217578,3.24342981,84.849,84.809,5.04495392]
[1771739217779,3.24342981,84.849,84.791,5.04495392]
[1771739218280,3.24189548,84.839,84.791,5.04495392]
[1771739227386,3.05095465,84.836,84.791,5.04495392]
[1771739227687,3.05095465,84.829,84.791,5.04495392]
[1771739228275,3.06067723,84.847,84.791,5.04495392]
[1771739228475,8.76825568,84.846,84.801,4.81272909]
[1771739228682,8.76825568,84.845,84.801,4.81272909]
[1771739228883,8.76825568,84.844,84.801,4.81272909]
[1771739229084,3.06067723,84.847,84.801,4.81272909]